{"text_format":"1","workbook":"xlsx","n_sheets":5,"sheets":["Sheet1","KSL","Nextag","Categories","Google"],"not_rendered":{"charts":0,"images":1,"macros":1,"external_links":0,"defined_names":4,"comments":0,"pivot_tables":0},"unopened":[],"bounds":{"document_bytes":16777216,"sheet_cells":100000,"rows_first":2000,"rows_last":500,"rows_between":2000,"halvings":0,"cell_chars":16384,"cell_head_chars":4096},"cells_cut":0,"cells_raw":0,"read":"whole","date_system":"1900"}

{"sheet":"Sheet1","index":0,"n_rows":17,"n_cols":6,"rows_kept":17,"cut":false,"hidden":false,"merged":[[0,0,0,5]]}
["Search Results:"]
["Listing Title","Potential Value","Listing Price","Column1","Discount from New Item","% Discount"]
["Samsung 23\" hd Monitor",216.22769230769231,{"$f":"Table2[[#This Row],[Column1]]/100","v":100},10000,{"$f":"IF(Table2[[#This Row],[Potential Value]]=\"Unavailable\",\"-----\",Table2[[#This Row],[Potential Value]]-Table2[[#This Row],[Listing Price]])","v":116.22769230769231},{"$f":"IF(Table2[[#This Row],[Potential Value]]=\"Unavailable\",\"-----\",Table2[[#This Row],[Discount from New Item]]/Table2[[#This Row],[Potential Value]])","v":0.53752454677405581}]
["20\" Flat screen CRT monitor 801-576-9212","Unavailable",{"$f":"Table2[[#This Row],[Column1]]/100","v":20},2000,{"$f":"IF(Table2[[#This Row],[Potential Value]]=\"Unavailable\",\"-----\",Table2[[#This Row],[Potential Value]]-Table2[[#This Row],[Listing Price]])","v":"-----"},{"$f":"IF(Table2[[#This Row],[Potential Value]]=\"Unavailable\",\"-----\",Table2[[#This Row],[Discount from New Item]]/Table2[[#This Row],[Potential Value]])","v":"-----"}]
["19.5 inch Ativa LCD monitor great price.","Unavailable",{"$f":"Table2[[#This Row],[Column1]]/100","v":100},10000,{"$f":"IF(Table2[[#This Row],[Potential Value]]=\"Unavailable\",\"-----\",Table2[[#This Row],[Potential Value]]-Table2[[#This Row],[Listing Price]])","v":"-----"},{"$f":"IF(Table2[[#This Row],[Potential Value]]=\"Unavailable\",\"-----\",Table2[[#This Row],[Discount from New Item]]/Table2[[#This Row],[Potential Value]])","v":"-----"}]
["17\" Westing House Monitor Excellent Condition Looks Ne...","Unavailable",{"$f":"Table2[[#This Row],[Column1]]/100","v":60},6000,{"$f":"IF(Table2[[#This Row],[Potential Value]]=\"Unavailable\",\"-----\",Table2[[#This Row],[Potential Value]]-Table2[[#This Row],[Listing Price]])","v":"-----"},{"$f":"IF(Table2[[#This Row],[Potential Value]]=\"Unavailable\",\"-----\",Table2[[#This Row],[Discount from New Item]]/Table2[[#This Row],[Potential Value]])","v":"-----"}]
["need monitor for daughter",33.037999999999997,{"$f":"Table2[[#This Row],[Column1]]/100","v":5},500,{"$f":"IF(Table2[[#This Row],[Potential Value]]=\"Unavailable\",\"-----\",Table2[[#This Row],[Potential Value]]-Table2[[#This Row],[Listing Price]])","v":28.037999999999997},{"$f":"IF(Table2[[#This Row],[Potential Value]]=\"Unavailable\",\"-----\",Table2[[#This Row],[Discount from New Item]]/Table2[[#This Row],[Potential Value]])","v":0.84865911980144071}]
["Kortek TFT-LCD 46\" Computer Monitor","Unavailable",{"$f":"Table2[[#This Row],[Column1]]/100","v":100},10000,{"$f":"IF(Table2[[#This Row],[Potential Value]]=\"Unavailable\",\"-----\",Table2[[#This Row],[Potential Value]]-Table2[[#This Row],[Listing Price]])","v":"-----"},{"$f":"IF(Table2[[#This Row],[Potential Value]]=\"Unavailable\",\"-----\",Table2[[#This Row],[Discount from New Item]]/Table2[[#This Row],[Potential Value]])","v":"-----"}]
["brand new in box ViewSonic 24\" 1080p HD LCD Display Wi...","Unavailable",{"$f":"Table2[[#This Row],[Column1]]/100","v":185},18500,{"$f":"IF(Table2[[#This Row],[Potential Value]]=\"Unavailable\",\"-----\",Table2[[#This Row],[Potential Value]]-Table2[[#This Row],[Listing Price]])","v":"-----"},{"$f":"IF(Table2[[#This Row],[Potential Value]]=\"Unavailable\",\"-----\",Table2[[#This Row],[Discount from New Item]]/Table2[[#This Row],[Potential Value]])","v":"-----"}]
["Sony XBrite SDM-HS75P/S 17\" LCD Monitor (Silver)","Unavailable",{"$f":"Table2[[#This Row],[Column1]]/100","v":65},6500,{"$f":"IF(Table2[[#This Row],[Potential Value]]=\"Unavailable\",\"-----\",Table2[[#This Row],[Potential Value]]-Table2[[#This Row],[Listing Price]])","v":"-----"},{"$f":"IF(Table2[[#This Row],[Potential Value]]=\"Unavailable\",\"-----\",Table2[[#This Row],[Discount from New Item]]/Table2[[#This Row],[Potential Value]])","v":"-----"}]
["Dell Ultrasharp 2007fp",304.92666666666656,{"$f":"Table2[[#This Row],[Column1]]/100","v":500},50000,{"$f":"IF(Table2[[#This Row],[Potential Value]]=\"Unavailable\",\"-----\",Table2[[#This Row],[Potential Value]]-Table2[[#This Row],[Listing Price]])","v":-195.07333333333344},{"$f":"IF(Table2[[#This Row],[Potential Value]]=\"Unavailable\",\"-----\",Table2[[#This Row],[Discount from New Item]]/Table2[[#This Row],[Potential Value]])","v":-0.639738516364591}]
["Dell 20.1\u0094 Ultra Sharp 2001FP Color Monitor. Perfect/N...","Unavailable",{"$f":"Table2[[#This Row],[Column1]]/100","v":100},10000,{"$f":"IF(Table2[[#This Row],[Potential Value]]=\"Unavailable\",\"-----\",Table2[[#This Row],[Potential Value]]-Table2[[#This Row],[Listing Price]])","v":"-----"},{"$f":"IF(Table2[[#This Row],[Potential Value]]=\"Unavailable\",\"-----\",Table2[[#This Row],[Discount from New Item]]/Table2[[#This Row],[Potential Value]])","v":"-----"}]
["Monitor",221.1,{"$f":"Table2[[#This Row],[Column1]]/100","v":20},2000,{"$f":"IF(Table2[[#This Row],[Potential Value]]=\"Unavailable\",\"-----\",Table2[[#This Row],[Potential Value]]-Table2[[#This Row],[Listing Price]])","v":201.1},{"$f":"IF(Table2[[#This Row],[Potential Value]]=\"Unavailable\",\"-----\",Table2[[#This Row],[Discount from New Item]]/Table2[[#This Row],[Potential Value]])","v":0.90954319312528265}]
["HP Pavillion VS17x 17-inch flat panel monitor - Cables...","Unavailable",{"$f":"Table2[[#This Row],[Column1]]/100","v":50},5000,{"$f":"IF(Table2[[#This Row],[Potential Value]]=\"Unavailable\",\"-----\",Table2[[#This Row],[Potential Value]]-Table2[[#This Row],[Listing Price]])","v":"-----"},{"$f":"IF(Table2[[#This Row],[Potential Value]]=\"Unavailable\",\"-----\",Table2[[#This Row],[Discount from New Item]]/Table2[[#This Row],[Potential Value]])","v":"-----"}]
["HP 20\" LCD \"new in box\"",134.99,{"$f":"Table2[[#This Row],[Column1]]/100","v":100},10000,{"$f":"IF(Table2[[#This Row],[Potential Value]]=\"Unavailable\",\"-----\",Table2[[#This Row],[Potential Value]]-Table2[[#This Row],[Listing Price]])","v":34.990000000000009},{"$f":"IF(Table2[[#This Row],[Potential Value]]=\"Unavailable\",\"-----\",Table2[[#This Row],[Discount from New Item]]/Table2[[#This Row],[Potential Value]])","v":0.25920438551003783}]
["LCD Monitors! (40$-80$)",276.38400000000001,{"$f":"Table2[[#This Row],[Column1]]/100","v":40},4000,{"$f":"IF(Table2[[#This Row],[Potential Value]]=\"Unavailable\",\"-----\",Table2[[#This Row],[Potential Value]]-Table2[[#This Row],[Listing Price]])","v":236.38400000000001},{"$f":"IF(Table2[[#This Row],[Potential Value]]=\"Unavailable\",\"-----\",Table2[[#This Row],[Discount from New Item]]/Table2[[#This Row],[Potential Value]])","v":0.85527382192891055}]
["Two 15 inch flat screen monitors get 2 for $30!",339.03499999999997,{"$f":"Table2[[#This Row],[Column1]]/100","v":20},2000,{"$f":"IF(Table2[[#This Row],[Potential Value]]=\"Unavailable\",\"-----\",Table2[[#This Row],[Potential Value]]-Table2[[#This Row],[Listing Price]])","v":319.03499999999997},{"$f":"IF(Table2[[#This Row],[Potential Value]]=\"Unavailable\",\"-----\",Table2[[#This Row],[Discount from New Item]]/Table2[[#This Row],[Potential Value]])","v":0.94100904036456412}]

{"sheet":"KSL","index":1,"n_rows":242,"n_cols":6,"rows_kept":242,"cut":false,"hidden":false,"merged":[]}
["About this ad"]
["ksl.com"]
["ksl | web | keyword"]
[]
["News"]
["Video"]
["TV"]
["Radio"]
["Weather"]
["Sports"]
["Traffic"]
["Movies"]
["Studio 5"]
["More"]
[]
["Classifieds CarsJobs Deals"]
[]
["Browse Ads"]
["Cars"]
["Homes"]
["Jobs"]
["Services"]
["Place a FREE Ad"]
["Place a FREE Car Ad"]
["My Ads"]
["Advanced Search"]
["Help"]
[]
["GuestLoginDec 10th, 2010"]
[]
["Computers"]
["Monitors "]
[]
["Keywords"]
[]
["Zip"]
[]
["Miles from"]
[]
["Min $"]
[]
["Max $"]
[]
["Seller"]
[]
[]
[]
[]
[null,"FEATURED AD Kenwood KDC-MP345U"]
[null,"Provo, UT"]
[null,99.95]
[null,"Want to feature your ad here? Click here to learn how!"]
["sort by"]
["State:"]
["Ad Filter:"]
["For Sale (319)"]
["Item Wanted"]
["Samsung 23\" hd Monitor"]
["Centerville, UT"]
["Works Great never had any problems I just have no use for it anymore"]
[10000]
["2010-12-10"]
["4 Hrs"]
["20\" Flat screen CRT monitor 801-576-9212"]
["Sandy, UT"]
["20\" Flat screen CRT monitor 801-576-9212"]
[2000]
["2010-12-10"]
["4 Hrs"]
["19.5 inch Ativa LCD monitor great price."]
["North Salt Lake, UT"]
["Perfectly working monitor, just got an apple so I don't need a pc monitor anymore. Great resolution,connects by VGA call, text, or email."]
[10000]
["2010-12-10"]
["5 Hrs"]
["17\" Westing House Monitor Excellent Condition Looks Ne..."]
["Bountiful, UT"]
["I have a !7\" Monitor that has been used very little. Please contact Brooklyn 801-837-1856."]
[6000]
["2010-12-10"]
["5 Hrs"]
["need monitor for daughter"]
["Logan, UT"]
["were looking for a plain simple computer for my daughter to do her home school."]
[500]
["2010-12-10"]
["5 Hrs"]
["Kortek TFT-LCD 46\" Computer Monitor"]
["South Jordan, UT"]
["I got this thinking I could fix it. Well so much for that. I monkeyed with the power board, so I think you need a new one. I think that's the proble"]
[10000]
["2010-12-10"]
["6 Hrs"]
["brand new in box ViewSonic 24\" 1080p HD LCD Display Wi..."]
["Salt Lake City, UT"]
["brand new in box ViewSonic 24\" 1080p HD LCD Display. item is not refurbished market price $260.Viewsonic VX2433wm widescreen LCD is ideal for gamers,"]
[18500]
["2010-12-10"]
["7 Hrs"]
["Sony XBrite SDM-HS75P/S 17\" LCD Monitor (Silver)"]
["COTTONWOOD HEIGHTS, UT"]
["LIKE NEW IN EXCELLENT CONDITION. Only used for a few months then moved and did not set computer up.Sony SDM-HS75P/S 17\" LCD Monitor - This LCD compute"]
[6500]
["2010-12-10"]
["8 Hrs"]
["Dell Ultrasharp 2007fp"]
["South Weber, UT"]
["$250 a piece; I will sell individually but they make a fantastic dual monitor setup. These are in PERFECT working and visual condition. They sell for"]
[50000]
["2010-12-10"]
["9 Hrs"]
["Dell 20.1\u0094 Ultra Sharp 2001FP Color Monitor. Perfect/N..."]
["Kaysville, UT"]
["Hi, I\u0092m Selling my Dell 20.1\u0094 Ultra Sharp 2001FP Color Monitor. Rated 4 ½ out of 5 stars. Fully Adjustable tilt and swivel stand. LCD Display with TFT"]
[10000]
["2010-12-10"]
["10 Hrs"]
["Monitor"]
["Provo, UT"]
["18\" Monitor. Good condition."]
[2000]
["2010-12-10"]
["10 Hrs"]
["HP Pavillion VS17x 17-inch flat panel monitor - Cables..."]
["Sandy, UT"]
["Just in time for Christmas. There is no damage to the Monitor works perfectly. It has the following features:Large Diagonal Viewable area display 17-"]
[5000]
["2010-12-10"]
["10 Hrs"]
["HP 20\" LCD \"new in box\""]
["Wvc, UT"]
["new in box. 1600x900 res. built in speakers. tilt and swivel base. new online for 140.00"]
[10000]
["2010-12-10"]
["11 Hrs"]
["LCD Monitors! (40$-80$)"]
["Provo, UT"]
["Please visit us at www.rewire.us for more monitors, computers, electronics and etc!---All of our LCD Monitors are tested and in excellent working cond"]
[4000]
["2010-12-10"]
["11 Hrs"]
["Two 15 inch flat screen monitors get 2 for $30!"]
["Salt Lake City, UT"]
["I have 2 15 inch View Sonic VE155 computer monitors in excellent condition. I will sell you 1 for $20 or 2 for $30. email, call or text me 801-633-686"]
[2000]
["2010-12-10"]
["11 Hrs"]
["319 Ads"]
["1 2 3 4 5 6 7 8 9"]
["About this ad"]
[]
["Deals »"]
["You have been subscribed!"]
["please wait..."]
[]
[]
["Kelsyus Portable Outdoor Table"]
[]
["Christus Statue "]
["Build Your Own Holiday Snack Crate Samplie... "]
[]
["advertisement"]
["DirectBuy - Save 50% on 700+ brand names"]
["Tonight at 10."]
["Justice for Elizabeth Smart. A complete wrap of the day's events on KSL 5 News."]
["Full TV Schedule | Bios"]
["Most Popular"]
[]
["Read"]
["Video"]
["Commented"]
["Deseret News"]
[]
["1. Smarts comment on Mitchell verdict"]
[]
["2. Mitchell found guilty, jury rejects ..."]
[]
["3. Fire destroys Salt Lake City home"]
[]
["4. Elizabeth Smart praised for poise, ..."]
[]
["5. Jurors say verdict wasn't an easy decision"]
[]
["1. Smarts comment on Mitchell verdict"]
[]
["2. Mitchell found guilty, jury rejects ..."]
[]
["3. Mitchell's step-daughter disappointed ..."]
[]
["4. Jurors say verdict wasn't an easy decision"]
[]
["5. Doug & the Movies: 'The Tourist'"]
[]
["1. Obama predicts tax bill passage, possible ..."]
[]
["2. Online gambling in Utah will stay illegal, ..."]
[]
["3. New coalition formed in Georgia following ..."]
[]
["4. Salt Lake soccer complex moving forward ..."]
[]
["5. House fire that claimed dog caused by ..."]
[]
["About this ad"]
["RSS Feed"]
[".comPost »"]
[]
["UPDATE: Version 3.0 of ksl.com iPhone app released"]
[]
["ksl.com iPhone app version 2.0 launched"]
[]
["Mobile Updates - iPhone and Android"]
[]
["About this ad"]
["Site Index"]
["News","Weather","TV","Radio","Classifieds","Advertise with KSL"]
[]
["Local","Forecasts","Bios","Listen LIVE","General","Other Resources"]
["News","Current Conditions","Schedule","Podcasts","Place an Ad"]
["Politics","VORTEX","Contests","Lineup","Homes","Contact Us / Phone Numbers"]
["Investigations","Microcast","More on the Web","Bios","Place an Ad","Careers with KSL"]
["Tough Times Survival Bank","Water Watch","Studio 5","Staff Blog","Cars","Careers with DDM"]
["National","Snowpack totals",null,"Shows","Place a Car ad","Web Resources"]
["World","Ramp reports","Sports","Utah's Morning News","Utah Jobs","Charity Account Form"]
["Showbiz","Lawn Watering guide",null,"Doug Wright Show","Place a Job ad"]
["Biz/Finance","Flood/Water Flow","BYU","The Browser","Help","Wireless"]
["Personal Finance Center","Photo Galleries","U of U","Utah's Afternoon News"]
["Consumer","Weather Planner","NFL","Nightside Project","Announcements","ksl.com mobile"]
["Sci/Tech","Weather Lab","Jazz/NBA","KSL Movie Show"]
["Health ","Ask the Meteorologist","Prep","KSL Outdoors","Place an Announcement","Legal"]
["Odds & Ends","Ski Report","Golf Utah","KSL Greenhouse Show"]
["Religion","Weather on 5.3","Deseret First Duel","Matt Townsend Show","Events","Terms of Use"]
["General Conference",null,"Cougar Tracks","KSL Travel Show",null,"Privacy Statement"]
["Mission Guide","Traffic",null,"Features","Post an Event","DMCA Notice"]
["Education",null,"Opinion","Speaking on Biz",null,"EEO Public File Report"]
["KSL Schools","Traffic Cams",null,"Teacher Feature","Movies","DTV Quarterly Activity"]
[null,null,"Editorials","Metro Business Reports",null,"Closed Captioning Assistance"]
[null,null,"Sunday Edition","Contests","Movie/Theater Listings"]
[null,null,null,"Events",null,"Sister Sites"]
[]
[null,null,null,null,null,"FM100 / Arrow 103.5"]
[null,null,null,null,null,"Deseret News / Mormon Times"]

{"sheet":"Nextag","index":2,"n_rows":101,"n_cols":2,"rows_kept":101,"cut":false,"hidden":true,"merged":[]}
[]
["Login using   |"]
["Sign In"]
["|"]
["Help"]
["Products"]
["Travel"]
["Degrees"]
["Deals"]
["Shop"]
[]
["Find It. Love It."]
["related:"]
["v7 17 lcd monitor d1711-n6 brand new"]
["acer v173 djb 17 flat panel lcd monitor,"]
[]
["dell 17 lcd monitor,"]
["17 lcd monitor,"]
["17 lcd computer monitor,"]
["17 hp lcd monitor,"]
["17 widescreen lcd monitors,"]
["17 lg lcd monitor,"]
["17 inch lcd monitor,"]
["17 lcd monitor speaker,"]
["17 acer lcd monitor,"]
["17 lcd monitor nec,"]
["17 lcd monitor samsung,"]
["viewsonic 17 monitor lcd,"]
["17 lcd monitor tv"]
[" more..."]
["Sorry, no matches found for V7 17\" LCD Monitor D1711-N6 - Brand New!."]
["Related:"]
["ACER V173 DJB 17 FLAT PANEL LCD MONITOR","17 LCD COMPUTER MONITOR"]
["DELL 17 LCD MONITOR","17 HP LCD MONITOR"]
["17 LCD MONITOR","17 WIDESCREEN LCD MONITORS"]
["Sponsored Links"]
["V7 D1711-N6 Speakers"]
["Free Shipping Offer, Save up to 40% V7 D1711-N6 Speakers - Order Today!"]
["www.Buy.com"]
["Brand Name Monitors"]
["Shop at OfficeMax for Brand Name Monitors. All Monitors Ship Free!"]
["www.OfficeMax.com"]
["V7 D1711 Monitor"]
["Save On the V7 D1711 Monitor. Shop Today at Office Depot.com!"]
["www.OfficeDepot.com"]
["Social Media Monitoring"]
["Fast, Accurate Tracking of Blogs + Other Social Media. Try It Free!"]
["www.CustomScoop.com"]
["17\" Monitors Bargains"]
["Best Value on Famous 17\" Monitors. Save More with Same Day Shipping!"]
["TigerDirect.com"]
["Search Tips:"]
["Reduce the number of search terms."]
["Try alternate spellings for your search terms."]
["Use different search terms."]
["Shopping"]
["Baby"]
["Books, "]
["CDs, "]
["& DVDs"]
["Clothing & Accessories"]
["Collectibles & Art"]
["Computers "]
["& Software"]
["Electronics"]
["Flowers & Plants"]
["Food & Wine "]
["& Baskets"]
["Health & Beauty"]
["Home & Garden"]
["Jewelry & Watches"]
["Office Products"]
["Sports & Outdoors"]
["Video Games "]
["& Toys"]
["International"]
["Australia"]
["Canada"]
["France"]
["Germany"]
["Italy"]
["Spain"]
["UK"]
["Mobile"]
["Merchants"]
["My Account"]
["About Us"]
["Customer Service"]
["How Are We Doing?"]
["Tell Us What You Think"]
["More Fun Stuff"]
["Degrees"]
["Travel"]
["Deals"]
["Wize Product Reviews"]
["Sign up for Nextag's Nextbuys newsletter"]
["Learn More"]
["Nextag is committed to protecting your privacy."]
["Read our privacy policy."]
["© 1999-2010, Nextag, Inc."]
["View Recent: Products (0) | Searches (15) | Sellers (0) My Favorites: Products (0) | Searches (0) | Brands (0) | Sellers (0) | My Lists (0)"]

{"sheet":"Categories","index":3,"n_rows":14,"n_cols":2,"rows_kept":14,"cut":false,"hidden":false,"merged":[]}
["Digital Cameras",511]
["Laptops",215]
["Playstation",480]
["TVs",658]
["Xbox Games & Equipment",479]
["Fiction Books",80]
["Computer Monitors",466]
["Palm / PDA's",217]
["Ipods",222]
["Apple Laptops/Desktops",554]
["Cell Phones - AT&T",613]
["Cell Phones - Sprint",616]
["Cell Phones - T-Mobile",614]
["Cell Phones - Verizon",615]

{"sheet":"Google","index":4,"n_rows":216,"n_cols":12,"rows_kept":216,"cut":false,"hidden":false,"merged":[]}
["Screen reader users, click here to turn off Google Instant."]
["Google"]
["Two 15 inch flat screen monitors get 2 for $30!","×",null,"Advanced search"]
[null,null,null,"Language tools"]
[null,null,null,"Instant is onInstant is offInstant is off (slow connection) ▼"]
[null,null,null,"Google Instant is off due to connection speed. Learn more."]
[null,null,null,"› On (type to search)› Off (press Enter to search)"]
[null,null,null,"More about Google Instant"]
["Google Instant is unavailable. Press Enter to search. Learn more"]
["Google Instant is off due to connection speed. Press Enter to search."]
["Press Enter to search."]
["Press Enter to search."]
["Web Images Videos Maps News Shopping Gmail more ▼"]
["Books Finance Translate Scholar Blogs Realtime"]
["YouTube Calendar Photos Documents Reader Sites Groups"]
["even more »"]
["Web History | Search settings | Sign in"]
["Advanced search"]
["About 5,410 results (0.23 seconds) "]
["Your location: Provo, UT 84604 - Change"]
["Change location: "]
["Sort by:"]
["Ads"]
["1. Flat Screen Monitor Deals"]
["Huge Selection & Savings Up to 80% Same Day Shipping, Buy Now!"]
["TigerDirect.com is rated"]
["Rated 4.6 out of 5.0"]
[" (48,877 reviews) "]
["www.TigerDirect.com"]
["2. Buy Monitors at OfficeMax"]
["OfficeMax.com Has Great Deals on Computer Monitors. Free Shipping!"]
["OfficeMax.com is rated"]
["Rated 4.1 out of 5.0"]
[" (2,853 reviews) "]
["www.OfficeMax.com"]
["Search Results"]
["1. VideoSecu Articulating LCD LED <em>Monitor</em> TV Wall Mount for 22\" <em>to</em> 37 ..."]
[29.99]
["Amazon.com"]
["Rated 4.4 out of 5.0 5,046 reviews"]
["VideoSecu Articulating LCD LED Monitor TV Wall Mount for 22\" to 37 ..."]
["VideoSecu brand TV wall mount. Please report to Amazon if you receive a mount without VideoSecu logo. This adjustable swing articulating LCD LED ..."]
["Add to Shopping List"]
["2. Arrow 13 <em>to</em> 24 <em>inch Flat</em> Panel TV Desktop Mount"]
[36.49]
["$41.14 with tax and shipping"]
["Overstock.com"]
["Rated 4.4 out of 5.0 5,767 reviews"]
["Arrow 13 to 24 inch Flat Panel TV Desktop Mount"]
["Desktop TV mount is made of solid heavy-gauge steel construction and durable powder-coated finish Flat panel TV mount has a VESA 75-mm and 100-mm ..."]
["Add to Shopping List"]
["3. Premier Mounts Elliptical Series Dual Ceiling Mount for up <em>to Two</em> ..."]
[1145]
["Free shipping"]
["StandsandMounts.com"]
["This site accepts Google Checkout"]
["Rated 4.6 out of 5.0 569 reviews"]
["Premier Mounts Elliptical Series Dual Ceiling Mount for up to Two ..."]
["The Elliptical Ceiling Mount Series is the latest mounting innovation from Premier Mounts. Designed from the ground up as universal ceiling mounts ..."]
["Add to Shopping List"]
["4. 10 <em>inch</em>-24 <em>inch Flat</em> Panel <em>Monitor</em> Plasma LCD HDTV Low profile ..."]
[18.989999999999998]
["$21.98 with tax and shipping"]
["Buy.com"]
["This site accepts Google Checkout"]
["Rated 4.3 out of 5.0 253,294 reviews"]
["10 inch-24 inch Flat Panel Monitor Plasma LCD HDTV Low profile ..."]
["Complete your home theater set-up with this Brand New Adjustable Tilt Wall Mount that will accommodate your 10 to 32 inch LCD/LED Flat Panel ..."]
["Add to Shopping List"]
["5. Buhl <em>Flat Screen Monitor</em> Cart With Cabinet And 34\" <em>To</em> 54\" Height ..."]
[449.95]
["$544.62 with tax and shipping"]
["GLOBALindustrial.com"]
["8 reviews"]
["Buhl Flat Screen Monitor Cart With Cabinet And 34\" To 54\" Height ..."]
["BUHL EXTRA-LARGE FLAT PANEL MONITOR & PLASMA, LCD SECURITY CART WITH SLIDE-OUT SHELVES LCD & Plasma Monitor Security Cart holds Flat Screen ..."]
["Add to Shopping List"]
["6. 3m Executive <em>Flat</em> Filter For 14 - 16\" <em>Monitor</em>, Black"]
[102.99]
["$116.99 with tax and shipping"]
["Sears"]
["Rated 3.5 out of 5.0 1,404 reviews"]
["3m Executive Flat Filter For 14 - 16\" Monitor, Black"]
["3M Executive Computer Filter EF200L fits 14\" - 16\" CRTs and 15\" LCD monitors. Two-sided anti-glare coating helps reduce up to 99% of screen glare ..."]
["Add to Shopping List"]
["7. Swing Arm Wall Mount LCD <em>Monitor Flat Screen</em> TV For LG <em>15</em>-22 <em>Inch</em> ..."]
[19.989999999999998]
["Amazon.com"]
["Rated 4.4 out of 5.0 5,046 reviews"]
["Swing Arm Wall Mount LCD Monitor Flat Screen TV For LG 15-22 Inch ..."]
["This adjustable swing LCD Wall mount could extends out up to 14\" , and fold flat against the wall. Durable steel construction supports LCD monitor ..."]
["Add to Shopping List"]
["8. MF202B Sanus <em>15</em>\" <em>to</em> 37\" <em>Flat</em> Panel HDTV Wall Mount with Tilt & Swivel"]
[69]
["Free shipping"]
["US Appliance"]
["Rated 4.5 out of 5.0 5,263 reviews"]
["MF202B Sanus 15\" to 37\" Flat Panel HDTV Wall Mount with Tilt & Swivel"]
["The VisionMount MF202 is a full-motion wall mount for small to medium flat-panel TVs. Sanus Systems? Virtual Axis 3D™ technology allows mount to ..."]
["Add to Shopping List"]
["9. EVO LCD Arm with Desk Clamp Mount, <em>15</em>\" <em>to</em> 21\" <em>Screen</em> Options"]
[212.95]
["Free shipping"]
["Ergo In Demand"]
["Rated 4.5 out of 5.0 79 reviews"]
["EVO LCD Arm with Desk Clamp Mount, 15\" to 21\" Screen Options"]
["Levitates a flat panel monitor above the work surface, enabling fingertip adjustment of monitor height and position. Includes two desk mounting ..."]
["Add to Shopping List"]
["10. Bretford® SmartDeck™ Adjustable, <em>Two</em>-<em>Monitor</em>, <em>Flat</em>-<em>Screen</em> ..."]
[1305]
["Highsmith"]
["Bretford® SmartDeck™ Adjustable, Two-Monitor, Flat-Screen ..."]
["Keep expensive flat-screen monitors hidden and secure when not in use! Monitor holder for flat screen flips up for computer use, then folds down ..."]
["Add to Shopping List"]
["Ads"]
["1. 15\" Monitors on Sale"]
["Amazing Deals on 15\" Monitors Shop Online Today & Save Big!"]
["CompUSA.com is rated"]
["Rated 4.5 out of 5.0"]
[" (3,001 reviews) "]
["www.CompUSA.com"]
["2. Corning® Gorilla® Glass"]
["Corning® Gorilla® Glass: Tough, Yet Beautiful."]
["CorningGorillaGlass.com"]
["3. 2 Screen Monitors"]
["Find 2 Screen Monitors at Target. Shop and Save at Target.com."]
["www.Target.com"]
["Everything"]
["Images"]
["Videos"]
["News"]
["Shopping"]
["Books"]
["Places"]
["Blogs"]
["Realtime"]
["Discussions"]
["MoreFewer"]
["Search Options"]
[]
["Show only"]
[" In stock nearbyNew!"]
[" Google Checkout"]
[" Free shipping"]
[" New items"]
[]
["Any category"]
[]
["Television Mounts & Brackets"]
["Bedsheets"]
[]
[]
["Any price"]
["Up to $200"]
["$200 – $500"]
["$500 – $1000"]
["Over $1000"]
[]
["$  to"]
["$  "]
[]
["Any brand"]
[]
["Sanus"]
["Peerless"]
["Luxor"]
["Premier Mounts"]
["Tripp Lite"]
["More"]
[]
["Bretford"]
["Chief Manufacturing"]
["Clover Electronics"]
["Htmarket"]
["Kensington"]
["Luxor"]
["Peerless"]
["Premier Mounts"]
["Sanus"]
["Tripp Lite"]
["Fewer"]
[]
["Any store"]
[]
["Amazon.com"]
["Buy.com"]
["Sears"]
["J&R Music and Computer World"]
["Dell Small Business"]
["More"]
[]
["Amazon.com"]
["Betty Mills Company"]
["Buy.com"]
["Dell Small Business"]
["Ergo In Demand"]
["Fry's Electronics"]
["GLOBALindustrial.com"]
["Highsmith"]
["HTmarket.com"]
["igonemobile"]
["J&R Music and Computer World"]
["L-Tron Corporation"]
["Lab Safety Supply ®"]
["Markertek"]
["Overstock.com"]
["PacificGeek.com"]
["Sears"]
["SolidSignal.com"]
["StandsandMounts.com"]
["US Appliance"]
["Fewer"]
[null,1,2,3,4,5,6,7,8,9,10,"Next"]
["Google does not charge for inclusion in its search results and all advertisements are clearly marked. Tax and shipping costs are estimates."]
["Search Help Give us feedback"]
["Google HomeAdvertising ProgramsBusiness SolutionsPrivacyAbout Google"]